bitfinex/quotes_SOLUSD_20260213
["timestamp","ask_amount","ask_price","bid_price","bid_amount"]
[1770990100825,0.64438432,80.419,80.38,55.18]
[1770990100826,0.64438432,80.419,80.383,12.4403903]
[1770990102316,0.64438432,80.418,80.383,12.4403903]
[1770990102519,0.64438432,80.409,80.383,12.4403903]
[1770990104607,0.64438432,80.409,80.38,55.18]
[1770990104808,0.64438432,80.409,80.375,12.44158291]
[1770990105124,0.64438432,80.409,80.37,11.47918914]
[1770990105125,0.64438432,80.399,80.361,12.44384713]
[1770990106125,0.64438432,80.399,80.361,43.55346497]
[1770990107812,0.64438432,80.397,80.361,43.55346497]
[1770990108339,0.64438432,80.397,80.361,12.44384713]
[1770990109824,0.64438432,80.395,80.361,12.44384713]
[1770990110326,11.47918914,80.39,80.36,11.47918914]
[1770990110528,0.64438432,80.389,80.358,55.2]
[1770990111020,0.64438432,80.379,80.34,11.47918914]
[1770990111403,0.64438432,80.379,80.35,11.47918914]
[1770990111998,11.47918914,80.4,80.36,11.47918914]
[1770990112215,49.72178712,80.448,80.341,0.14216157]
[1770990112216,11.47918914,80.41,80.371,0.61485626]
[1770990112636,11.47918914,80.4,80.36,66.69918914]
[1770990112838,11.47918914,80.4,80.37,11.47918914]
[1770990113044,11.47918914,80.41,80.37,11.47918914]
[1770990113837,11.47918914,80.4,80.37,11.47918914]
[1770990114033,0.61445397,80.397,80.37,11.47918914]
[1770990114239,0.61445397,80.397,80.367,12.4427807]
[1770990114637,0.61445397,80.427,80.368,0.61485626]
[1770990114938,0.61445397,80.419,80.38,11.47918914]
[1770990116324,0.61445397,80.417,80.381,12.44075092]
[1770990116525,0.61445397,80.443,80.391,0.61485626]
[1770990116729,0.61445397,80.429,80.391,0.61485626]
[1770990118242,0.61445397,80.428,80.393,0.61485626]
[1770990119548,12.4334089,80.429,80.385,12.44010841]
[1770990119549,0.61445397,80.419,80.385,12.44010841]
[1770990120245,0.61445397,80.417,80.39,11.47918914]
[1770990120627,0.61445397,80.417,80.385,13.05496467]
[1770990121041,0.61445397,80.417,80.391,0.65371004]
[1770990121350,0.61402392,80.429,80.401,0.65371004]
[1770990121645,0.61402392,80.429,80.385,43.54043807]
[1770990121646,0.61402392,80.439,80.411,0.65371004]
[1770990122424,0.61402392,80.439,80.412,12.43595483]
[1770990122644,0.61402392,80.429,80.395,55.2]
[1770990122822,12.43193515,80.438,80.38,11.47918914]
[1770990122823,0.61402392,80.419,80.38,11.47918914]
[1770990123951,0.61402392,80.419,80.326,49.79677585]
[1770990123952,11.47918914,80.4,80.371,12.44229883]
[1770990124129,0.61402392,80.399,80.371,12.44229883]
[1770990124630,0.61402392,80.448,80.391,0.65371004]
[1770990124834,12.4302353,80.449,80.4,11.47918914]
[1770990124835,0.61402392,80.439,80.4,11.47918914]
[1770990125054,0.61402392,80.429,80.4,11.47918914]
[1770990125433,43.50582356,80.449,80.368,0.65371004]
[1770990125434,0.61402392,80.409,80.368,0.65371004]
[1770990125635,0.61402392,80.409,80.38,11.47918914]
[1770990125843,0.61402392,80.409,80.37,11.47918914]
[1770990126750,0.61402392,80.407,80.371,43.54804592]
[1770990127155,0.61402392,80.407,80.371,12.44229883]
[1770990128732,0.61402392,80.407,80.37,11.47918914]
[1770990128733,0.61402392,80.389,80.367,12.44283046]
[1770990129429,45.6,80.408,80.367,12.44283046]
[1770990129430,0.61402392,80.44,80.38,11.47918914]
[1770990129637,0.61402392,80.419,80.39,11.47918914]
[1770990129837,0.61402392,80.447,80.411,0.65371004]
[1770990130236,0.61402392,80.447,80.41,11.47918914]
[1770990130953,0.61402392,80.439,80.406,12.43681216]
[1770990131253,0.61402392,80.429,80.406,12.43681216]
[1770990132062,0.61402392,80.429,80.395,55.14]
[1770990132536,0.61402392,80.429,80.4,11.47918914]
[1770990132738,0.61402392,80.429,80.395,55.14]
[1770990133447,0.61402392,80.427,80.395,67.57846729]
[1770990133655,0.61402392,80.427,80.391,12.43920339]
[1770990135171,0.61402392,80.427,80.4,11.47918914]
[1770990135545,0.61402392,80.427,80.393,12.43889393]
[1770990136043,0.61402392,80.425,80.393,12.43889393]
[1770990137452,0.61402392,80.425,80.385,55.14]
[1770990137453,0.61402392,80.419,80.386,12.43997711]
[1770990137760,0.61402392,80.417,80.386,12.43997711]
[1770990137970,0.61402392,80.417,80.39,11.47918914]
[1770990140148,0.61402392,80.415,80.386,12.43997711]
[1770990140449,0.61402392,80.415,80.39,11.47918914]
[1770990141868,0.61402392,80.409,80.38,11.47918914]
[1770990142044,0.61402392,80.409,80.381,12.44075092]
[1770990142958,11.47918914,80.41,80.379,12.44106047]
[1770990142959,0.61402392,80.407,80.379,12.44106047]
[1770990143459,0.61402392,80.399,80.37,12.44233337]
[1770990144350,0.61402392,80.389,80.361,12.44384713]
[1770990144549,0.61402392,80.379,80.355,12.44462922]
[1770990145955,0.61402392,80.379,80.343,55.18]
[1770990146155,0.61402392,80.379,80.343,0.65371004]
[1770990146360,0.61402392,80.367,80.333,12.44818443]
[1770990147352,0.61402392,80.367,80.341,0.65371004]
[1770990147857,0.61402392,80.379,80.35,11.47918914]
[1770990148266,0.61402392,80.359,80.333,12.44818443]
[1770990148448,11.47918914,80.35,80.325,12.44927109]
[1770990148766,0.61402392,80.349,80.325,12.44927109]
[1770990149479,0.61402392,80.339,80.298,12.4536103]
[1770990149776,0.61402392,80.339,80.29,0.1]
[1770990149777,0.61402392,80.327,80.291,0.65371004]
[1770990149970,0.61402392,80.319,80.29,12.55470597]
[1770990150172,0.61402392,80.309,80.29,0.1]
[1770990150363,0.61402392,80.328,80.292,0.65371004]
[1770990150958,12.44911424,80.327,80.292,0.65371004]
[1770990151262,0.64040709,80.319,80.29,11.57918914]
[1770990151760,0.64040709,80.31,80.29,0.1]
[1770990151955,0.64040709,80.309,80.29,0.1]
[1770990152873,0.64040709,80.307,80.29,0.1]
[1770990153267,12.45205957,80.308,80.28,0.1]
[1770990153268,0.64040709,80.299,80.28,0.1]
[1770990153473,0.64040709,80.299,80.27,12.45792294]
[1770990154057,0.64040709,80.299,80.261,12.45935136]
[1770990154256,0.64040709,80.307,80.28,11.47918914]
[1770990154458,11.47918914,80.31,80.28,11.47918914]
[1770990154459,45.46,80.315,80.283,0.65118981]
[1770990154651,13.09024799,80.323,80.291,0.65118981]
[1770990154850,0.64040709,80.322,80.291,0.65118981]
[1770990155160,0.64040709,80.319,80.282,44.24751276]
[1770990155477,0.64040709,80.319,80.283,0.65118981]
[1770990155857,0.64040709,80.319,80.29,11.47918914]
[1770990156562,0.64040709,80.319,80.291,12.45469604]
[1770990158755,0.64040709,80.319,80.283,0.62930508]
[1770990159170,0.65756349,80.317,80.283,0.62930508]
[1770990159381,0.65756349,80.309,80.277,12.45681528]
[1770990160582,0.65756349,80.309,80.281,0.62930508]
[1770990160967,0.65756349,80.309,80.282,12.45609227]
[1770990161761,12.45205957,80.308,80.282,12.45609227]
[1770990161959,0.65756349,80.307,80.282,12.45609227]
[1770990162760,0.65756349,80.307,80.278,12.45671134]
[1770990164084,0.65756349,80.307,80.279,0.62930508]
[1770990165858,13.10993317,80.306,80.279,0.62930508]
[1770990166179,0.65756349,80.309,80.28,11.50524452]
[1770990166361,0.65756349,80.309,80.279,0.62930508]
[1770990167658,13.109468,80.309,80.279,0.62930508]
[1770990167858,13.109468,80.309,80.281,0.62930508]
[1770990168163,0.65756349,80.308,80.274,0.62930508]
[1770990168364,12.45190451,80.309,80.267,12.45842002]
[1770990168365,0.65756349,80.299,80.267,12.45842002]
[1770990168886,0.65756349,80.299,80.27,11.50524452]
[1770990169182,0.65756349,80.299,80.267,12.45842002]
[1770990170371,0.65756349,80.279,80.255,12.46028284]
[1770990171267,0.65756349,80.269,80.235,0.62930508]
[1770990171467,0.65756349,80.259,80.23,12.46414473]
[1770990172363,0.65756349,80.257,80.23,23.96938925]
[1770990173283,0.65756349,80.257,80.23,12.46414473]
[1770990173585,0.65756349,80.257,80.23,23.96938925]
[1770990173766,0.65756349,80.257,80.231,0.62930508]
[1770990174690,0.65756349,80.256,80.225,12.46478872]
[1770990174986,0.65756349,80.256,80.225,13.0940938]
[1770990175168,0.65756349,80.256,80.226,0.62930508]
[1770990175493,0.65756349,80.256,80.23,12.1345496]
[1770990175990,0.65756349,80.255,80.23,11.50524452]
[1770990176486,0.65756349,80.255,80.218,55.16]
[1770990176487,0.65756349,80.298,80.243,0.62930508]
[1770990176677,0.65756349,80.289,80.251,0.62930508]
[1770990176880,0.65756349,80.289,80.26,11.50524452]
[1770990177071,0.65756349,80.289,80.261,0.62930508]
[1770990177273,0.65756349,80.298,80.27,11.50524452]
[1770990177468,0.65756349,80.298,80.261,0.62930508]
[1770990177671,0.65756349,80.323,80.29,11.50524452]
[1770990177970,0.65756349,80.323,80.254,55.16]
[1770990177971,43.55780119,80.353,80.27,11.50524452]
[1770990177972,0.65756349,80.299,80.27,11.50524452]
[1770990178166,0.65756349,80.299,80.262,0.62930508]
[1770990178167,0.65756349,80.289,80.262,0.62930508]
[1770990178380,0.65756349,80.289,80.26,11.50524452]
[1770990178886,0.65756349,80.289,80.238,4.61729252]
[1770990178887,0.65756349,80.309,80.271,0.62930508]
[1770990179394,0.65756349,80.309,80.28,11.50524452]
[1770990179684,43.57135742,80.328,80.261,43.74989134]
[1770990179685,0.65756349,80.319,80.29,11.50524452]
[1770990180276,0.65756349,80.319,80.291,0.62930508]
[1770990180465,0.65756349,80.329,80.3,12.1345496]
[1770990180675,13.07444865,80.329,80.301,12.45314504]
[1770990181078,0.62564436,80.328,80.301,12.45314504]
[1770990181288,0.62564436,80.328,80.294,0.64965524]
[1770990181796,0.62564436,80.328,80.3,11.50524452]
[1770990181990,0.62564436,80.327,80.294,0.64965524]
[1770990182176,0.62564436,80.327,80.293,12.45438581]
[1770990182787,0.62564436,80.327,80.3,11.50524452]
[1770990183094,0.62564436,80.327,80.294,0.64965524]
[1770990183401,0.62564436,80.336,80.311,0.64965524]
[1770990184890,0.62564436,80.336,80.312,12.45143938]
[1770990185191,0.62564436,80.344,80.32,11.50524452]
[1770990185881,0.62564436,80.353,80.321,0.64965524]
[1770990186187,0.62564436,80.353,80.33,11.50524452]
[1770990186687,0.62564436,80.361,80.33,12.15489976]
[1770990186990,0.62564436,80.359,80.33,24.60346863]
[1770990187708,0.62564436,80.359,80.33,23.95381339]
[1770990188899,0.62564436,80.369,80.34,11.50524452]
[1770990189198,0.62564436,80.369,80.341,12.44694489]
[1770990189581,0.62564436,80.367,80.341,12.44694489]
[1770990191478,0.62564436,80.367,80.342,0.64965524]
[1770990191675,0.62564436,80.375,80.35,11.50524452]
[1770990192087,0.62564436,80.375,80.351,0.64965524]
[1770990192300,0.62564436,80.389,80.36,12.15489976]
[1770990192494,0.62564436,80.389,80.361,0.64965524]
[1770990193008,0.62564436,80.389,80.37,11.50524452]
[1770990193208,0.62564436,80.389,80.36,11.50524452]
[1770990193417,0.62564436,80.389,80.361,0.64965524]
[1770990193583,0.62564436,80.389,80.362,12.44369229]
[1770990193910,0.62564436,80.389,80.362,13.09334753]
[1770990195110,0.62564436,80.389,80.37,11.50524452]
[1770990195510,0.62564436,80.389,80.362,13.09334753]
[1770990195890,0.62564436,80.379,80.35,11.50524452]
[1770990196204,0.62564436,80.379,80.36,11.50524452]
[1770990196385,11.50524452,80.39,80.36,11.50524452]
[1770990196386,0.62564436,80.387,80.36,11.50524452]
[1770990196587,0.62564436,80.387,80.361,0.64965524]
[1770990198099,12.43882618,80.394,80.363,0.64965524]
[1770990198409,0.62564436,80.393,80.363,0.64965524]
[1770990198607,0.62564436,80.393,80.362,12.44369229]
[1770990198608,12.43810326,80.399,80.371,0.64965524]
[1770990199113,0.62564436,80.398,80.371,0.64965524]
[1770990199286,0.62564436,80.398,80.362,43.55292302]
[1770990199489,0.62564436,80.389,80.362,12.44369229]
[1770990199697,0.62564436,80.398,80.37,11.50524452]
[1770990199891,0.62564436,80.398,80.371,0.64965524]
[1770990200091,0.62564436,80.408,80.38,11.50524452]
[1770990201712,0.62564436,80.408,80.381,12.44075092]
[1770990201895,12.43672814,80.407,80.381,12.44075092]
[1770990202215,0.62564436,80.406,80.38,11.50524452]
[1770990202409,0.62564436,80.406,80.379,0.64965524]
[1770990202613,0.62564436,80.406,80.38,23.94615021]
[1770990203219,0.2,80.41,80.381,0.64965524]
[1770990203509,12.4364188,80.409,80.381,0.64965524]
[1770990204416,13.06206316,80.409,80.381,0.64965524]
[1770990204620,0.62564436,80.408,80.381,0.64965524]
[1770990204825,0.62564436,80.408,80.382,13.09025139]
[1770990205009,0.62564436,80.408,80.375,0.64965524]
[1770990205322,0.62564436,80.408,80.375,13.09122059]
[1770990205821,0.62564436,80.408,80.37,4.28509364]
[1770990206111,0.62564436,80.399,80.371,13.09195407]
[1770990206310,45.44,80.408,80.36,4.28509364]
[1770990206311,0.62564436,80.397,80.36,4.28509364]
[1770990206514,0.62564436,80.397,80.361,0.64965524]
[1770990206713,0.62564436,80.409,80.381,0.64965524]
[1770990206894,0.62564436,80.409,80.348,4.61729252]
[1770990206895,0.2,80.41,80.4,11.4746544]
[1770990207090,0.62564436,80.433,80.401,0.60698768]
[1770990207312,0.62564436,80.433,80.41,12.08164208]
[1770990207501,0.62564436,80.447,80.411,0.60698768]
[1770990207697,0.62564436,80.439,80.411,0.60698768]
[1770990207917,0.62564436,80.429,80.401,0.60738327]
[1770990208609,0.62564436,80.429,80.406,12.43675771]
[1770990209316,11.4746544,80.44,80.391,31.09767237]
[1770990209317,0.62564436,80.427,80.393,0.60777091]
[1770990209507,0.62564436,80.427,80.4,11.4746544]
[1770990210218,0.62564436,80.427,80.393,0.60777091]
[1770990210421,12.43379006,80.426,80.392,12.43904866]
[1770990210620,0.62564436,80.425,80.392,12.43904866]
[1770990210820,0.62564436,80.425,80.392,13.04797075]
[1770990211015,0.62564436,80.425,80.392,12.43904866]
[1770990211222,0.62564436,80.425,80.39,11.4746544]
[1770990211409,0.6161528,80.419,80.385,12.44013186]
[1770990211599,0.6161528,80.419,80.39,11.4746544]
[1770990212013,0.6161528,80.419,80.386,0.60892209]
[1770990212420,0.6161528,80.419,80.386,0.60930548]
[1770990212727,0.6161528,80.417,80.39,12.08433933]
[1770990213230,0.6161528,80.417,80.39,11.4746544]
[1770990213519,0.6161528,80.417,80.387,12.43982235]
[1770990213719,45.42,80.43,80.391,0.61005274]
[1770990213720,0.6161528,80.426,80.391,0.61005274]
[1770990214516,0.6161528,80.426,80.402,0.61005274]
[1770990214714,12.43190629,80.439,80.411,0.61042281]
[1770990214917,0.6161528,80.438,80.402,0.61042281]
[1770990216207,0.6546925,80.429,80.395,54.8]
[1770990216410,0.6546925,80.429,80.396,12.43842977]
[1770990216811,0.6546925,80.419,80.395,54.8]
[1770990217106,0.6546925,80.419,80.381,12.44075092]
[1770990217905,0.6546925,80.419,80.381,43.54262822]
[1770990218112,0.6546925,80.419,80.39,11.4746544]
[1770990218618,0.6546925,80.419,80.381,13.05258028]
[1770990219030,0.6546925,80.417,80.381,13.05258028]
[1770990220223,0.6546925,80.417,80.381,12.44075092]
[1770990221124,0.6546925,80.415,80.382,0.61284406]
[1770990222125,0.6546925,80.413,80.383,12.44044138]
[1770990224427,0.6546925,80.409,80.383,12.44044138]
[1770990224608,0.6546925,80.409,80.37,11.47713289]
[1770990224808,0.6546925,80.409,80.371,12.44229883]
[1770990225007,0.6546925,80.409,80.371,13.05645065]
[1770990225202,0.6546925,80.409,80.371,43.54804592]
[1770990225527,0.6546925,80.399,80.367,55.47415182]
[1770990225730,0.6546925,80.389,80.36,0.61415182]
[1770990225926,0.6546925,80.389,80.353,12.44508605]
[1770990226422,0.6546925,80.389,80.342,0.61447062]
[1770990226423,0.6546925,80.369,80.335,0.61447062]
[1770990226624,12.43966761,80.388,80.341,0.61447062]
[1770990226625,0.6546925,80.379,80.341,0.61447062]
[1770990227631,0.6546925,80.379,80.35,11.47713289]
[1770990227813,0.6546925,80.379,80.35,12.09223457]
[1770990228008,0.6546925,80.379,80.342,0.61510168]
[1770990228329,0.6546925,80.369,80.341,0.61510168]
[1770990228523,0.6546925,80.379,80.343,0.61510168]
[1770990228916,0.6546925,80.379,80.351,0.61540531]
[1770990230527,0.6546925,80.379,80.352,0.61571204]
[1770990230705,0.6546925,80.386,80.361,0.61571204]
[1770990231111,13.09267894,80.399,80.371,0.61601544]
[1770990231310,0.6546925,80.398,80.371,0.61601544]
[1770990231726,13.09281285,80.398,80.371,0.61601544]
[1770990232229,0.6546925,80.397,80.371,0.61601544]
[1770990232823,0.6546925,80.395,80.361,0.61662489]
[1770990233636,12.43842977,80.396,80.36,12.44400199]
[1770990233637,0.6546925,80.389,80.36,12.44400199]
[1770990234638,0.6546925,80.389,80.361,0.61692105]
[1770990235238,0.6546925,80.389,80.362,12.44369229]
[1770990235445,13.09436011,80.388,80.363,0.61721577]
[1770990235963,0.6546925,80.387,80.359,54.88]
[1770990236123,0.6546925,80.387,80.36,12.44400199]
[1770990236520,0.6546925,80.387,80.361,0.61750681]
[1770990237641,12.43997711,80.386,80.361,0.61750681]
[1770990238160,12.43997711,80.386,80.362,12.44369229]
[1770990238842,0.6546925,80.385,80.359,54.88]
[1770990239040,0.6546925,80.385,80.36,12.44400199]
[1770990239545,0.6546925,80.385,80.361,0.61836088]
[1770990240544,0.6546925,80.385,80.362,12.44369229]
[1770990240746,0.65789502,80.392,80.363,0.6191931]
[1770990241347,0.65789502,80.399,80.363,0.6191931]
[1770990242255,0.65789502,80.389,80.362,12.44369229]
[1770990242946,0.65789502,80.387,80.359,54.88]
[1770990243328,0.65789502,80.387,80.359,67.32412353]
[1770990244154,0.65789502,80.387,80.361,0.6200029]
[1770990244464,45.48,80.395,80.361,0.6200029]
[1770990244465,0.65789502,80.399,80.361,0.6200029]
[1770990245149,12.43812035,80.398,80.362,12.44369229]
[1770990245455,0.65789502,80.397,80.363,0.62026244]
[1770990246256,0.65789502,80.389,80.362,12.44369229]
[1770990246549,0.65789502,80.389,80.36,54.98]
[1770990246732,0.65789502,80.389,80.36,67.42398903]
[1770990247053,0.65789502,80.379,80.352,0.62077293]
[1770990247264,0.65789502,80.379,80.353,12.44508605]
[1770990247834,0.65789502,80.377,80.348,12.44571698]
[1770990248847,0.65789502,80.375,80.345,12.44632522]
[1770990250963,0.65789502,80.373,80.342,0.6217658]
[1770990253453,0.65789502,80.369,80.337,12.4474107]
[1770990254660,0.65789502,80.367,80.339,12.44725475]
[1770990255036,0.65789502,80.367,80.329,55.64271925]
[1770990255263,0.65789502,80.349,80.329,67.46867806]
[1770990255438,0.65789502,80.356,80.33,0.62271925]
[1770990256380,0.65789502,80.349,80.329,55.02]
[1770990256657,0.65789502,80.339,80.313,12.45128434]
[1770990256962,0.65789502,80.338,80.313,12.45128434]
[1770990258266,0.65789502,80.329,80.306,12.45236968]
[1770990259256,0.65789502,80.336,80.307,0.62363031]
[1770990259641,0.65789502,80.335,80.307,0.62363031]
[1770990259836,4.28948353,80.33,80.307,0.62363031]
[1770990260042,0.65789502,80.329,80.307,0.62363031]
[1770990262069,45.54,80.349,80.304,55.04]
[1770990262070,0.65789502,80.327,80.304,55.04]
[1770990262358,4.94737855,80.31,80.284,55.70428311]
[1770990262755,4.28948353,80.3,80.281,12.45624743]
[1770990263146,0.65789502,80.299,80.277,55.70449546]
[1770990263344,0.65789502,80.299,80.271,12.4577992]
[1770990264544,0.65789502,80.299,80.27,0.1]
[1770990264545,0.65789502,80.289,80.27,0.1]
[1770990265370,12.4536103,80.298,80.27,0.1]
[1770990265371,0.65789502,80.298,80.272,0.62491865]
[1770990265951,0.65789502,80.297,80.272,0.62491865]
[1770990266463,0.65789502,80.297,80.273,12.45748881]
[1770990266852,0.65789502,80.289,80.27,0.1]
[1770990267057,0.65789502,80.279,80.27,0.1]
[1770990267744,0.65789502,80.279,80.258,12.45979402]
[1770990268751,0.65789502,80.279,80.244,0.63712887]
[1770990268956,0.65789502,80.269,80.245,55.1]
[1770990269154,0.65789502,80.259,80.24,12.46252937]
[1770990269864,0.65789502,80.259,80.226,55.73712887]
[1770990270059,0.65789502,80.259,80.227,12.4646316]
[1770990270360,0.65789502,80.259,80.228,0.63712887]
[1770990270755,0.62359223,80.267,80.243,0.61930555]
[1770990271065,0.62359223,80.279,80.243,0.61930555]
[1770990271443,0.62359223,80.279,80.251,0.61930555]
[1770990273066,0.62359223,80.279,80.25,4.28948353]
[1770990273067,0.62359223,80.279,80.253,0.61930555]
[1770990273270,0.62359223,80.307,80.26,4.28948353]
[1770990273447,0.62359223,80.299,80.261,0.61930555]
[1770990274758,0.62359223,80.306,80.271,0.61930555]
[1770990274963,0.62359223,80.299,80.272,12.45764401]
[1770990275372,0.62359223,80.299,80.263,12.4590409]
[1770990275667,0.62359223,80.289,80.262,55.08]
[1770990276170,0.62359223,80.289,80.263,12.4590409]
[1770990276372,0.62359223,80.289,80.263,13.08567881]
[1770990276750,0.62359223,80.289,80.264,0.62663791]
[1770990276962,0.62359223,80.289,80.263,12.4590409]
[1770990276963,0.67416067,80.288,80.263,12.4590409]
[1770990277158,0.67416067,80.288,80.262,55.08]
[1770990277360,0.67416067,80.279,80.246,55.70663791]
[1770990277674,0.67416067,80.269,80.233,12.46359151]
[1770990277878,4.28948353,80.28,80.251,0.62663791]
[1770990278062,0.67416067,80.284,80.251,0.62663791]
[1770990279075,4.28948353,80.28,80.252,12.46074864]
[1770990279271,4.28948353,80.28,80.252,13.08738655]
[1770990279452,0.67416067,80.284,80.253,0.62663791]
[1770990279853,0.67416067,80.283,80.253,0.62663791]
[1770990280663,0.67416067,80.279,80.248,12.46131676]
[1770990280867,12.45589266,80.284,80.234,86.25876444]
[1770990280868,0.67416067,80.269,80.237,12.46307813]
[1770990281177,12.45826481,80.268,80.237,12.46307813]
[1770990281372,4.30096709,80.27,80.238,0.62663791]
[1770990281679,0.67416067,80.283,80.251,0.62663791]
[1770990283163,0.67416067,80.282,80.251,0.62663791]
[1770990283371,0.67416067,80.279,80.252,12.46074864]
[1770990284987,0.67416067,80.279,80.243,67.48201411]
[1770990285163,0.67416067,80.269,80.243,67.48201411]
[1770990285563,0.67416067,80.259,80.243,55.02]
[1770990285779,0.67416067,80.259,80.235,12.46329318]
[1770990285975,0.67416067,80.267,80.236,0.62663791]
[1770990286579,0.67416067,80.267,80.241,0.62663791]
[1770990287159,0.67416067,80.275,80.241,0.62663791]
[1770990287763,0.67416067,80.275,80.243,0.62663791]
[1770990288177,0.67416067,80.275,80.25,4.30096709]
[1770990288362,0.67416067,80.275,80.25,4.927605]
[1770990288679,4.97512776,80.29,80.261,0.62663791]
[1770990288987,0.67416067,80.289,80.261,0.62663791]
[1770990289572,0.67416067,80.288,80.261,0.62663791]
[1770990290884,0.67416067,80.279,80.251,12.46090391]
[1770990291588,0.67416067,80.269,80.242,12.46227351]
[1770990293386,0.67416067,80.269,80.242,13.08891142]
[1770990293686,0.67416067,80.269,80.242,12.46227351]
[1770990294089,0.67416067,80.269,80.243,0.62663791]
[1770990295790,0.67416067,80.269,80.244,12.46199092]
[1770990295992,0.67416067,80.269,80.244,13.08862883]
[1770990296481,0.67416067,80.269,80.245,0.62663791]
[1770990296877,0.67416067,80.286,80.251,0.62663791]
[1770990297984,4.30096709,80.28,80.252,13.08738655]
[1770990298289,0.67416067,80.279,80.252,13.08738655]
[1770990298586,0.67416067,80.279,80.252,12.46074864]
[1770990300206,0.67416067,80.259,80.206,0.62663791]
[1770990300494,0.67416067,80.266,80.238,0.62663791]
[1770990300707,0.67416067,80.266,80.241,0.62241716]
[1770990301276,0.64345725,80.273,80.241,0.62241716]
[1770990302292,0.64345725,80.271,80.243,0.62241716]
[1770990305271,0.64345725,80.279,80.245,0.62241716]
[1770990305494,0.64345725,80.298,80.261,0.62241716]
[1770990305701,0.64345725,80.309,80.29,4.30096709]
[1770990306078,0.64345725,80.309,80.281,0.62241716]
[1770990306674,12.44880429,80.329,80.3,4.30096709]
[1770990306878,0.64345725,80.328,80.3,4.30096709]
[1770990307177,0.64345725,80.326,80.292,13.07695808]
[1770990307382,0.64345725,80.326,80.293,0.62241716]
[1770990307582,0.64345725,80.326,80.3,4.30096709]
[1770990308392,12.44942421,80.325,80.301,12.45314504]
[1770990308596,0.64345725,80.324,80.301,12.45314504]
[1770990309498,0.64345725,80.309,80.246,0.62241716]
[1770990309709,0.64345725,80.289,80.255,0.62241716]
[1770990310392,0.64345725,80.297,80.261,0.62241716]
[1770990310593,0.64345725,80.297,80.27,4.30096709]
[1770990310796,0.64345725,80.289,80.25,4.30096709]
[1770990311032,0.64345725,80.289,80.251,12.46090391]
[1770990311502,0.64345725,80.289,80.251,13.08332107]
[1770990311711,43.58709323,80.299,80.251,13.08332107]
[1770990311712,0.64345725,80.298,80.261,0.62241716]
[1770990312008,0.64345725,80.289,80.251,12.46090391]
[1770990312207,0.64345725,80.279,80.251,12.46090391]
[1770990312408,11.51480345,80.27,80.234,12.46354413]
[1770990312614,0.64345725,80.269,80.234,12.46354413]
[1770990312791,43.59849522,80.278,80.228,0.62241716]
[1770990312792,0.64345725,80.259,80.228,0.62241716]
[1770990312989,0.64345725,80.259,80.23,12.13722061]
[1770990313587,0.64345725,80.259,80.227,12.46452842]
[1770990314321,0.64345725,80.257,80.221,12.46556387]
[1770990314491,0.64345725,80.239,80.21,11.51480345]
[1770990314688,0.64345725,80.239,80.2,23.98363138]
[1770990315008,0.64345725,80.239,80.201,0.62241716]
[1770990315814,0.64345725,80.229,80.2,12.46882793]
[1770990316013,0.64345725,80.227,80.199,5.89733327]
[1770990316607,0.64345725,80.209,80.199,5.2069179]
[1770990317310,11.51480345,80.21,80.199,1.04398303]
[1770990317494,11.51480345,80.21,80.199,1e-08]
[1770990319093,12.46593461,80.219,80.199,1e-08]
[1770990320218,11.51480345,80.21,80.199,1e-08]
[1770990321508,43.63600094,80.209,80.199,1e-08]
[1770990321708,12.46742884,80.209,80.199,1e-08]
[1770990322014,11.51480345,80.21,80.199,1e-08]
[1770990322196,12.46589864,80.219,80.199,0.69083987]
[1770990322513,11.51480345,80.21,80.199,1e-08]
[1770990324113,31.16454235,80.22,80.199,1e-08]
[1770990324316,11.51480345,80.22,80.199,1e-08]
[1770990324518,12.46540849,80.222,80.199,1e-08]
[1770990324696,11.51480345,80.21,80.199,1e-08]
[1770990325906,12.46742884,80.209,80.199,1e-08]
[1770990328019,11.51480345,80.22,80.199,1e-08]
[1770990328409,11.51480345,80.23,80.199,1e-08]
[1770990328613,23.97741561,80.24,80.211,0.69083986]
[1770990329122,11.51480345,80.25,80.211,0.69083986]
[1770990329325,11.51480345,80.23,80.211,0.69083986]
[1770990329510,11.51480345,80.23,80.203,0.69083986]
[1770990330315,11.51480345,80.22,80.199,1e-08]
[1770990330514,11.51480345,80.21,80.199,1e-08]
[1770990330704,0.02070025,80.222,80.199,1e-08]
[1770990330905,11.51480345,80.21,80.199,1e-08]
[1770990332331,12.46742884,80.209,80.199,1e-08]
[1770990335110,11.51480345,80.21,80.199,1e-08]
[1770990335314,11.51480345,80.22,80.199,1e-08]
[1770990335525,11.51480345,80.21,80.199,1e-08]
[1770990335913,11.51480345,80.22,80.199,1e-08]
[1770990336522,12.46587466,80.219,80.199,1e-08]
[1770990337925,11.51480345,80.21,80.199,1e-08]
[1770990338425,12.46587466,80.219,80.199,1e-08]
[1770990338736,45.42,80.218,80.199,1e-08]
[1770990338922,4.30672316,80.21,80.199,1e-08]
[1770990340316,0.03727416,80.209,80.199,1e-08]
[1770990340627,12.4689834,80.199,80.18,0.1]
[1770990340825,12.4689834,80.199,80.18,0.80946817]